[Event "Denmark Team Championship 2022"]
[Site "Denmark"]
[Date "2022.10.30"]
[Round "2.8"]
[White "Kakulidis, Ellen"]
[Black "Pedersen, Peer Ole"]
[Result "1/2-1/2"]
[ECO "D78"]
[WhiteElo "2021"]
[BlackElo "2085"]
[Annotator "ChessBase"]
[PlyCount "149"]
[EventDate "2022.10.29"]
[EventType "team-tourn"]
[EventCountry "DEN"]
[SourceTitle "playchess.com"]
[Source "ChessBase"]
[SourceQuality "1"]
[TimeControl "40/5400+30:1800+30"]

1. d4 {[%emt 0:02:28]} d5 {[%emt 0:00:09]} 2. c4 {[%emt 0:00:08]} c6 {[%emt 0:00:05]} 3. Nf3 {[%emt 0:00:07]} Nf6 {[%emt 0:00:09]} 4. g3 {[%emt 0:00:07]} g6 {[%emt 0:01:38]} 5. Bg2 {[%emt 0:02:18]} Bg7 {[%emt 0:00:11]} 6. O-O {[%emt 0:01:37]} O-O {[%emt 0:00:13]} 7. Nbd2 {[%emt 0:01:14]} Nbd7 {[%emt 0:05:34]} 8. b3 {[%emt 0:05:22]} h6 {[%emt 0:03:15]} 9. Bb2 {[%emt 0:02:50]} a6 {[%emt 0:16:05]} 10. Re1 {[%emt 0:05:46]} Nb6 {[%emt 0:16:19]} 11. e4 {[%emt 0:07:19]} Be6 {[%emt 0:06:46]} 12. exd5 {[%emt 0:14:42]} cxd5 {[%emt 0:00:14]} 13. c5 {[%emt 0:02:31]} Nbd7 {[%emt 0:00:33]} 14. b4 {[%emt 0:10:49]} Rc8 {[%emt 0:02:02]} 15. Rc1 {[%emt 0:21:22]} Nh7 {[%emt 0:04:53]} 16. Nh4 {[%emt 0:07:04]} g5 {[%emt 0:12:54]} 17. Ng6 {[%emt 0:07:30]} Re8 {[%emt 0:00:24]} 18. Qc2 {[%emt 0:05:04]} Nhf8 {[%emt 0:08:27]} 19. Nxf8 {[%emt 0:00:09]} Rxf8 {[%emt 0:01:08]} 20. Nf1 {[%emt 0:00:46]} Nf6 {[%emt 0:00:32]} 21. Ne3 {[%emt 0:00:41]} Qd7 {[%emt 0:00:36]} 22. a4 {[%emt 0:00:48]} h5 {[%emt 0:01:30]} 23. Bf1 {[%emt 0:00:30]} Bh6 {[%emt 0:00:34]} 24. Bd3 {[%emt 0:00:20]} g4 {[%emt 0:00:42]} 25. Rcd1 {[%emt 0:00:39]} Kg7 {[%emt 0:09:34]} 26. Bc1 {[%emt 0:00:07]} Rh8 {[%emt 0:00:21]} 27. Ng2 {[%emt 0:00:53]} Bxc1 {[%emt 0:00:26]} 28. Rxc1 {[%emt 0:00:07]} Nh7 {[%emt 0:00:47]} 29. Bxh7 {[%emt 0:00:02]} Rxh7 {[%emt 0:00:14]} 30. Nh4 {[%emt 0:00:04]} Rh6 {[%emt 0:00:28]} 31. Re5 {[%emt 0:00:45]} Rch8 {[%emt 0:01:20]} 32. Rce1 {[%emt 0:00:13]} Rf6 {[%emt 0:00:20]} 33. Rg5+ {[%emt 0:00:52]} Kf8 {[%emt 0:00:24]} 34. Qd1 {[%emt 0:01:34]} Rhh6 {[%emt 0:00:07]} 35. Ree5 {[%emt 0:00:32]} Rh8 {[%emt 0:01:06]} 36. Rxh5 {[%emt 0:00:12]} Rfh6 {[%emt 0:01:43]} 37. Rxh6 {[%emt 0:00:10]} Rxh6 {[%emt 0:00:01]} 38. Qd2 {[%emt 0:00:38]} Rh7 {[%emt 0:01:18]} 39. Qf4 {[%emt 0:00:32]} f6 {[%emt 0:02:46]} 40. Re1 {[%emt 0:00:54]} Kf7 {[%emt 0:00:59]} 41. Qe3 {[%emt 0:03:02]} Rh5 {[%emt 0:02:17]} 42. b5 {[%emt 0:04:22]} axb5 {[%emt 0:01:17]} 43. axb5 {[%emt 0:00:03]} Bf5 {[%emt 0:01:10]} 44. Nxf5 {[%emt 0:04:08]} Rxf5 {[%emt 0:01:37]} 45. Qh6 {[%emt 0:12:16]} Rg5 {[%emt 0:00:37]} 46. c6 {[%emt 0:05:00]} bxc6 {[%emt 0:02:09]} 47. bxc6 {[%emt 0:00:02]} Qc7 {[%emt 0:23:04]} 48. Qh7+ {[%emt 0:00:53]} Kf8 {[%emt 0:00:21]} 49. Qh8+ {[%emt 0:01:51]} Rg8 {[%emt 0:00:05]} 50. Qh6+ {[%emt 0:00:17]} Rg7 {[%emt 0:00:01]} 51. Rc1 {[%emt 0:00:55]} Kf7 {[%emt 0:02:02]} 52. Qh5+ {[%emt 0:00:22]} Ke6 {[%emt 0:00:11]} 53. Qh8 {[%emt 0:02:25]} Kf7 {[%emt 0:00:39]} 54. Qh5+ {[%emt 0:01:27]} Ke6 {[%emt 0:00:06]} 55. Qh8 {[%emt 0:00:18]} Kf7 {[%emt 0:00:10]} 56. Qa8 {[%emt 0:00:16]} e6 {[%emt 0:00:23]} 57. Rb1 {[%emt 0:00:49]} Rg8 {[%emt 0:02:05]} 58. Qa4 {[%emt 0:00:12]} Kg6 {[%emt 0:00:11]} 59. Qc2+ {[%emt 0:00:58]} f5 {[%emt 0:00:11]} 60. Rb7 {[%emt 0:00:19]} Qa5 {[%emt 0:00:52]} 61. c7 {[%emt 0:00:48]} Rc8 {[%emt 0:00:07]} 62. Qe2 {[%emt 0:00:11]} Kf7 {[%emt 0:00:57]} 63. Qe5 {[%emt 0:00:31]} Qa1+ {[%emt 0:00:48]} 64. Kg2 {[%emt 0:00:03]} Qd1 {[%emt 0:00:03]} 65. Qe3 {[%emt 0:00:30]} Qc2 {[%emt 0:00:17]} 66. Rb6 {[%emt 0:00:31]} Qe4+ {[%emt 0:00:20]} 67. Qxe4 {[%emt 0:00:13]} dxe4 {[%emt 0:00:02]} 68. Rc6 {[%emt 0:00:40]} Ke7 {[%emt 0:00:01]} 69. h4 {[%emt 0:01:09]} gxh3+ {[%emt 0:00:01]} 70. Kxh3 {[%emt 0:00:02]} Kd7 {[%emt 0:00:10]} 71. Rc1 {[%emt 0:00:54]} Rxc7 {[%emt 0:00:05]} 72. Rxc7+ {[%emt 0:00:40]} Kxc7 {[%emt 0:00:01]} 73. g4 {[%emt 0:00:25]} fxg4+ {[%emt 0:00:26]} 74. Kxg4 {[%emt 0:00:02]} Kd6 {[%emt 0:00:10]} 75. Kf4 {[%emt 0:00:51]} 1/2-1/2

[Event "Denmark Team Championship 2022"]
[Site "Denmark"]
[Date "2022.02.26"]
[Round "4.1"]
[White "Bjerre, Jonas Buhl"]
[Black "Fries-Nielsen, Jens Ove"]
[Result "1-0"]
[ECO "E06"]
[WhiteElo "2622"]
[BlackElo "2353"]
[Annotator "TA"]
[PlyCount "89"]
[EventDate "2022.10.29"]
[EventType "team-tourn"]
[EventCountry "DEN"]
[SourceTitle "playchess.com"]
[Source "ChessBase"]
[SourceQuality "1"]
[TimeControl "40/5400+30:1800+30"]

{[%evp 18,89,13,14,46,56,43,33,73,32,133,121,125,91,81,90,127,0,23,21,22,44,27,19,28,0,27,4,0,-5,7,0,0,0,0,0,0,0,8,8,8,8,8,8,8,0,32,21,62,20,34,17,57,39,38,41,189,50,41,43,101,38,136,136,136,136,143,148,143,143,261,250,234,208]} 1. Nf3 {[%emt 0:01:06]} Nf6 {[%emt 0:02:22]} 2. d4 {[%emt 0:00:53]} e6 {[%emt 0:00:52]} 3. c4 {[%emt 0:00:07]} d5 {[%emt 0:01:20]} 4. g3 {[%emt 0:00:11]} Be7 {[%emt 0:00:23]} 5. Bg2 {[%emt 0:00:08]} O-O {[%emt 0:00:17]} 6. Nc3 {[%emt 0:00:25]} Na6 {[%emt 0:04:57]} 7. O-O {[%emt 0:01:22]} b6 {[%emt 0:00:14]} 8. cxd5 {[%emt 0:12:12]} exd5 {[%emt 0:00:16]} 9. Ne5 {[%emt 0:03:58]} Bb7 {[%emt 0:00:36]} 10. Bf4 {[%emt 0:03:46] 10.Bg5 gains popularity.} Qc8 {[%emt 0:07:20] E18: Queen's Indian: Old Main Line (4 g3 Bb7 5 Bg2 Be7 6 0-0 0-0 7 Nc3).} 11. Rc1 {[%emt 0:11:26]} Qe6 {[%emt 0:01:54]} 12. h4 {[%emt 0:07:54] [#]} Nh5 $146 {[%emt 0:17:06] White is slightly better.} ({Predecessor:} 12... Rfd8 13. e3 h6 14. g4 Ne4 15. h5 c5 16. f3 Nf6 17. Kh2 Nh7 18. Bg3 {0-1 (48) Kaunas,K (2350)-Zsinka,L (2325) Budapest 1993}) 13. Bd2 {[%emt 0:07:46] And now e4 would win.} (13. Bg5 $5 {[%cal Rg5e7]} Nf6 14. Re1 $14) 13... g6 {[%emt 0:12:15]} (13... Nf6 $14) 14. e4 {[%emt 0:07:58]} dxe4 {[%emt 0:02:55]} 15. Nxe4 {[%emt 0:00:29][%cal Oe4f6]} Rad8 {[%emt 0:06:09]} 16. Bh6 {[%emt 0:04:02]} Ng7 {[%emt 0:06:47]} 17. Qa4 {[%emt 0:03:43] Really sharp!} (17. Re1 $1 $16 {Threatens to win with Ng4.} c5 18. Nf6+ $1 {[%mdl 512]} Bxf6 19. Bxb7 Bxe5 20. Rxe5 (20. Bxa6 Rxd4 21. Qe2 Bf6 $11) 20... Qxe5 21. dxe5 Rxd1+ 22. Rxd1) 17... Bxe4 {[%emt 0:17:18]} (17... c5 $5 {[%cal Rd8d4]} 18. Rfd1 Rfe8 $11) 18. Bxe4 {[%emt 0:01:13][%cal Oe5c6] aiming for Nc6!} Nc5 {[%emt 0:01:07]} 19. dxc5 {[%emt 0:03:53]} Qxe5 {[%emt 0:00:04]} 20. cxb6 {[%emt 0:03:43]} cxb6 {[%emt 0:01:52] Hoping for ...Rd4.} (20... Rd4 {keeps more tension.} 21. Qa6 axb6 22. Bg2 Bc5) 21. Qc2 {[%emt 0:02:43]} (21. Rce1 {is interesting.} Bc5 22. Qb3 Qd4 23. Be3) 21... Bc5 {[%emt 0:00:39]} 22. Bf4 {[%emt 0:02:59]} Qe6 {[%emt 0:00:27]} 23. Rfe1 {[%emt 0:01:40]} Rfe8 {[%emt 0:02:47]} 24. Kg2 {[%emt 0:02:31]} Qxa2 {[%emt 0:03:37]} 25. Bg5 {[%emt 0:02:16]} Rd6 {[%emt 0:03:25]} 26. Bf3 {[%emt 0:02:32]} (26. Ra1 $5 Qe6 $8 27. Bf4 $11 (27. Rxa7 Rd4 $11)) 26... Rxe1 {[%emt 0:01:03]} 27. Rxe1 {[%emt 0:00:02]} Re6 {[%emt 0:01:00]} 28. Rd1 {[%emt 0:01:25]} Rd6 {[%emt 0:00:32] Against Bd5} 29. Rxd6 {[%emt 0:05:02]} Bxd6 {[%emt 0:00:01]} 30. Qc8+ {[%emt 0:00:14]} (30. Qc6 {is more complex.} Bf8 31. Bd5 Qb1 32. Qa8) 30... Bf8 {[%emt 0:00:05]} 31. Qd7 {[%emt 0:02:23]} (31. Be7 {seems wilder.} Ne6 32. Bg4 Qd5+ 33. Kg1) 31... Qe6 {[%emt 0:03:53] Inhibits Bd5.} 32. Qxa7 {[%emt 0:00:07]} h5 {[%emt 0:01:25]} (32... Bc5 {feels hotter.} 33. Bd2 Bd4 34. b4 h5) 33. Qa8 {[%emt 0:03:08]} Qd7 {[%emt 0:00:42]} (33... Nf5 {looks sharper.} 34. Qb7 Bc5 35. Bd5 Nd6) 34. Be3 {[%emt 0:00:50]} (34. Bd5 {is more complex.} Nf5 35. Bf6 Qd6 36. Bc3) 34... b5 {[%emt 0:00:21]} 35. Bc6 {[%emt 0:00:48]} Qf5 {[%emt 0:00:21]} 36. Bd5 {[%emt 0:00:53]} Ne6 {[%emt 0:01:04] [#] Against Bc5} (36... Ne8 $14 37. Qb7 b4) 37. Bh6 {[%emt 0:00:53]} (37. Bxe6 $1 $18 fxe6 38. Kh2) 37... Ng7 $14 {[%emt 0:00:43]} 38. Bd2 {[%emt 0:01:00] Bb4 is the strong threat.} Kh7 {[%emt 0:00:38]} (38... Ne8 $1 $14 39. Be4 Qe5) 39. Be3 {[%emt 0:01:00]} (39. Qb7 $16) 39... Qd7 {[%emt 0:00:38]} (39... Ne6 $14) 40. Bc6 $36 {[%emt 0:00:40][%mdl 2048] White has strong initiative. White has more active pieces. This pair of bishops is nice.} Qe7 {[%emt 0:00:24]} 41. Bxb5 {[%emt 0:02:36]} Nf5 {[%emt 0:00:23]} 42. Bg5 {[%emt 0:03:02]} Qb4 {[%emt 0:00:03]} 43. Bd3 {[%emt 0:03:31]} Bg7 {[%emt 0:04:33]} (43... Kg7 $16 44. Qc6 Nd6) 44. Qd5 $18 {[%emt 0:03:59][%csl LRf5,LRf7]} Nh6 {[%emt 0:19:53] [#]} 45. b3 $1 {[%emt 0:02:03] Weighted Error Value: White=0.20 (precise) /Black=0.28 (precise)} ({Much less strong is} 45. Bxh6 $6 Kxh6 46. Qg5+ (46. Qxf7 Qd6 $16) 46... Kh7 47. Qxh5+ Kg8) 1-0

[Event "Denmark Team Championship 2022"]
[Site "Denmark"]
[Date "2022.03.13"]
[Round "4.1"]
[White "Rasmussen, Allan Stig"]
[Black "Hillarp Persson, Tiger"]
[Result "0-1"]
[ECO "A10"]
[WhiteElo "2528"]
[BlackElo "2519"]
[Annotator "TA"]
[PlyCount "60"]
[EventDate "2022.10.29"]
[EventType "team-tourn"]
[EventCountry "DEN"]
[SourceTitle "playchess.com"]
[Source "ChessBase"]
[SourceQuality "1"]
[TimeControl "40/5400+30:1800+30"]

{[%evp 22,60,16,6,12,28,26,7,16,29,21,0,0,0,22,9,16,22,44,45,45,40,46,19,22,0,0,-252,-245,-382,-400,-389,-382,-435,-436,-29990,-29991,-29991,-29992,-29992,-29993]} 1. c4 {[%emt 0:00:04]} b6 {[%emt 0:03:07]} 2. Nc3 {[%emt 0:00:50]} Bb7 {[%emt 0:00:17]} 3. Nf3 {[%emt 0:02:25]} Nf6 {[%emt 0:00:39]} 4. g3 {[%emt 0:00:40]} c5 {[%emt 0:03:25]} 5. Bg2 {[%emt 0:00:16]} g6 {[%emt 0:00:20]} 6. O-O {[%emt 0:01:23]} Bg7 {[%emt 0:00:08]} 7. d4 {[%emt 0:00:36]} cxd4 {[%emt 0:00:14]} 8. Qxd4 {[%emt 0:00:09]} O-O {[%emt 0:03:14]} 9. Qh4 {[%emt 0:00:15]} d6 {[%emt 0:00:39]} 10. Rd1 {[%emt 0:07:26]} Nbd7 {[%emt 0:00:41]} 11. Be3 {[%emt 0:00:36]} Rc8 {[%emt 0:29:42]} 12. Rac1 {[%emt 0:00:21]} Re8 {[%emt 0:00:43] A30: Symmetrical English: Double Fianchetto and Hedgehog.} 13. b3 {[%emt 0:02:04]} a6 {[%emt 0:14:53]} 14. Bh3 {[%emt 0:02:48]} h5 {[%emt 0:12:09] The position is equal.} 15. Ng5 {[%emt 0:13:42]} Rc7 {[%emt 0:08:27]} 16. f3 {[%emt 0:13:11]} (16. Nd5 {simplifies} Nxd5 17. cxd5 Rxc1 18. Bxc1 Nf8 19. Be3) 16... Qb8 {[%emt 0:03:08]} 17. Qf4 {[%emt 0:04:07] [#]} Ba8 $5 $146 {[%emt 0:10:31][%mdl 8] New and interesting.} ({Predecessor:} 17... Rf8 18. Bf2 Bh6 19. Bxd7 Nxd7 20. Nd5 Bxd5 21. cxd5 Nf6 22. h4 b5 23. Qd2 Rfc8 {½-½ (37) Zawadski,A (2180)-Macchiagodena,M (2217) ICCF email 2016}) 18. Bf2 {[%emt 0:09:08]} b5 {[%emt 0:00:08]} (18... Ne5 {simplifies} 19. Nd5 Bxd5 20. cxd5 Rxc1 21. Qxc1 Qb7) 19. Nd5 {[%emt 0:01:59]} e5 {[%emt 0:01:58]} 20. Qd2 {[%emt 0:05:59]} Bxd5 {[%emt 0:00:09]} 21. cxd5 {[%emt 0:00:05]} e4 {[%emt 0:01:52]} 22. Rc6 {[%emt 0:13:17] Threatens to win with Rdc1.} exf3 {[%emt 0:00:22]} 23. exf3 {[%emt 0:03:24] Hoping for Rdc1.} (23. Rxa6 $2 fxe2 24. Re1 Bh6 $19) (23. Rdc1 $5 {[%cal Rc6c7]} Nc5 24. exf3 $14) 23... Ne5 $1 {[%emt 0:00:06]} 24. Rxd6 {[%emt 0:02:16][%mdl 8192]} (24. Rxc7 $11 {and White has nothing to worry.} Qxc7 25. Bg2) 24... Nh7 $19 {[%emt 0:00:48] And now ...Nxg5 would win.} 25. Bg2 {[%emt 0:01:19]} (25. Rxa6 $2 {loses.} Nxg5 26. Kh1 Nxh3 $19) (25. Rb6 {keeps fighting.} Qd8 26. d6 (26. f4 $2 Nxg5 27. Kf1 Nef3 $19) 26... Nxg5 27. dxc7 Qxc7 28. Kg2 Nexf3 29. Qd7) 25... Nxg5 {[%emt 0:02:46]} 26. Qxg5 {[%emt 0:00:03] [#]} Rc2 $1 {[%emt 0:00:09][%csl LRa2,LRd6][%mdl 64] Discovered Attack} 27. Rb6 {[%emt 0:05:07]} Qc8 {[%emt 0:00:19][%cal Oc2f2] White must now prevent ...Rxf2!} 28. Bd4 {[%emt 0:02:06] [#]} (28. Rf1 $19) 28... Nxf3+ $1 {[%emt 0:01:48][%mdl 576] Discovered Attack. Black mates.} 29. Bxf3 {[%emt 0:03:45]} Bxd4+ {[%emt 0:00:07]} (29... Rxa2 $2 {[#]} 30. Rxg6 $1 {[%mdl 512]} (30. Bxg7 {gets mated.} Qc5+ 31. Kh1 Qf2) 30... fxg6 31. Qxg6 $18) 30. Kh1 {[%emt 0:00:08]} Bxb6 {[%emt 0:00:05] Weighted Error Value: White=0.75/Black=0.02 (flawless)} 0-1

[Event "Denmark Team Championship 2022"]
[Site "Denmark"]
[Date "2022.03.13"]
[Round "4.2"]
[White "Pilgaard, Kim"]
[Black "Heimisson, Hilmir Freyr"]
[Result "1/2-1/2"]
[ECO "D10"]
[WhiteElo "2379"]
[BlackElo "2322"]
[Annotator "TA"]
[PlyCount "30"]
[EventDate "2022.10.29"]
[EventType "team-tourn"]
[EventCountry "DEN"]
[SourceTitle "playchess.com"]
[Source "ChessBase"]
[SourceQuality "1"]
[TimeControl "40/5400+30:1800+30"]

{[%evp 11,30,0,0,0,7,25,16,12,22,19,16,15,105,95,106,60,69,57,55,50,34]} 1. d4 {[%emt 0:00:04]} d5 {[%emt 0:03:05]} 2. c4 {[%emt 0:00:11]} c6 {[%emt 0:00:11]} 3. cxd5 {[%emt 0:00:18]} cxd5 {[%emt 0:00:09]} 4. Nc3 {[%emt 0:00:11]} Nc6 {[%emt 0:00:08]} 5. Bf4 {[%emt 0:00:15]} e5 {[%emt 0:01:08]} 6. dxe5 {[%emt 0:00:37]} d4 {[%emt 0:00:59] [#] Threatens to win with ...Qa5.} 7. Ne4 {[%emt 0:01:26] D10: Slav Defence: 3 cxd5 (without early Nf3) and 3 Nc3.} Qa5+ {[%emt 0:07:34]} (7... Bf5 $5 {[%cal Rf5e4]} 8. Nd6+ Bxd6 9. exd6 Nf6 $11) 8. Nd2 $1 {[%emt 0:02:34]} ({Not} 8. Qd2 $2 Bb4 9. Nf3 (9. Nd6+ $2 Kf8 $19) 9... Nge7 $19) 8... Nge7 {[%emt 0:02:37][%cal Oe7g6]} 9. a3 {[%emt 0:07:49] [#] The position is equal.} Be6 $146 {[%emt 0:10:11][%cal Oa5b6]} (9... Ng6 $5 {[%cal Rg6f4]} 10. e3 (10. b4 Qd8 $11) 10... Be7 $11) ({Predecessor:} 9... Ng6 10. b4 Qd5 11. e4 dxe3 12. Bxe3 Ngxe5 13. Nb3 Nxb4 14. axb4 Bxb4+ 15. Nd2 O-O {0-1 (25) Krenz,V (2275)-Langheinrich,F (2375) Germany 2007}) 10. b4 {[%emt 0:01:41]} Qd5 {[%emt 0:05:03][%cal Oe7g6]} 11. Ngf3 {[%emt 0:02:09]} h6 {[%emt 0:07:30]} (11... Rd8 $11 {keeps the balance.}) 12. e4 $16 {[%emt 0:10:48]} dxe3 {[%emt 0:12:32]} 13. Bxe3 {[%emt 0:02:03]} ({White should play} 13. fxe3 $16 g5 14. Bc4) 13... Nxe5 $14 {[%emt 0:00:31] White is slightly better.} 14. Nxe5 {[%emt 0:00:45]} Qxe5 {[%emt 0:00:09]} 15. Nf3 {[%emt 0:02:46]} Qd5 {[%emt 0:02:42] Weighted Error Value: White=0.07 (flawless) /Black=0.19 (very precise)} 1/2-1/2

[Event "Denmark Team Championship 2022"]
[Site "Denmark"]
[Date "2022.02.26"]
[Round "4.2"]
[White "Light, Bjarne"]
[Black "Andersen, Mads"]
[Result "0-1"]
[ECO "A15"]
[WhiteElo "2190"]
[BlackElo "2615"]
[Annotator "TA"]
[PlyCount "102"]
[EventDate "2022.10.29"]
[EventType "team-tourn"]
[EventCountry "DEN"]
[SourceTitle "playchess.com"]
[Source "ChessBase"]
[SourceQuality "1"]
[TimeControl "40/5400+30:1800+30"]

{[%evp 25,102,19,22,20,20,10,13,0,0,0,-1,-12,0,-13,-13,-33,-35,-43,0,-21,0,-22,-22,-52,-39,-45,-45,-46,-46,-46,5614,-58,-52,-52,-45,-45,-58,-102,-96,-113,-47,-62,-53,-102,-71,-72,-66,-75,0,0,0,-68,-14,-216,-169,-150,-58,-395,-393,-390,-369,-377,-357,-333,-339,-345,-345,-362,-346,-531,-483,-1028,-903,-1047,-934,-29978,-29979,-29985,-29986]} 1. c4 {[%emt 0:00:04]} Nf6 {[%emt 0:01:02]} 2. g3 {[%emt 0:00:51]} g6 {[%emt 0:00:42]} 3. Bg2 {[%emt 0:02:06]} Bg7 {[%emt 0:00:15]} 4. Nc3 {[%emt 0:00:47]} O-O {[%emt 0:00:31]} 5. d3 {[%emt 0:01:04]} c5 {[%emt 0:07:34]} 6. e4 {[%emt 0:04:39]} Nc6 {[%emt 0:00:25]} 7. Nge2 {[%emt 0:00:07]} d6 {[%emt 0:01:00]} 8. O-O {[%emt 0:00:42]} Rb8 {[%emt 0:00:51]} 9. a3 {[%emt 0:04:56]} a6 {[%emt 0:00:35]} 10. Rb1 {[%emt 0:00:34]} b5 {[%emt 0:00:08]} 11. cxb5 {[%emt 0:00:27]} axb5 {[%emt 0:00:05]} 12. b4 {[%emt 0:00:36]} cxb4 {[%emt 0:00:06]} 13. axb4 {[%emt 0:00:06]} e5 {[%emt 0:00:06]} 14. h3 {[%emt 0:05:03] A36: Symmetrical English vs ...g6: 4 Bg2 Bg7.} Be6 {[%emt 0:00:19]} 15. f4 {[%emt 0:06:11]} exf4 {[%emt 0:00:41]} 16. gxf4 {[%emt 0:02:00] The position is equal.} (16. Bxf4 {is interesting.} Nh5 17. Bd2 Qb6+ 18. Kh1) 16... Ne7 {[%emt 0:00:19]} 17. Be3 {[%emt 0:11:08]} Qd7 {[%emt 0:08:13]} 18. Kh2 {[%emt 0:02:33]} Nh5 {[%emt 0:00:30] [#]} 19. Nd4 $146 {[%emt 0:08:45][%cal Of4f5]} ({Predecessor:} 19. Bd4 f5 20. Bxg7 Nxg7 21. Nd4 fxe4 22. dxe4 Bc4 23. Rf3 d5 24. e5 Nef5 25. Nxf5 Rxf5 {0-1 (38) Tanriverdi,E (2401)-Ganerdene,S (2407) Corum 2019}) 19... d5 {[%emt 0:10:50] Inhibits f5.} 20. Nxe6 {[%emt 0:08:41]} fxe6 {[%emt 0:10:12]} 21. Ne2 {[%emt 0:02:20]} Bh6 {[%emt 0:14:08]} 22. Qb3 {[%emt 0:08:07]} Rf7 {[%emt 0:03:01]} 23. Rf2 {[%emt 0:03:30]} Rbf8 {[%emt 0:07:05][%cal Rh5f4]} 24. Rbf1 {[%emt 0:00:46] [#]} (24. Qc3 {with more complications.} Bg7 25. Qc5 Rc8 26. Qa7) 24... Nxf4 $1 {[%emt 0:10:21]} 25. Nxf4 {[%emt 0:07:33]} (25. Rxf4 Qc7) 25... Bxf4+ {[%emt 0:01:12]} 26. Bxf4 {[%emt 0:09:22] [#]} Rxf4 $1 {[%emt 0:00:15][%mdl 64]} 27. Rxf4 {[%emt 0:00:51]} Rf7 {[%emt 0:00:17][%mdl 8192]} 28. R1f3 $2 (28. Rxf7 $18 {White wants to mate with Rf8+.} Qe8 29. exd5 Qb8+ 30. Kg1 Nf5 31. dxe6 Qb6+ 32. Rf2 Nd4 33. Qa2) 28... Rxf4 $15 29. Rxf4 {[%emt 0:01:16]} Qc7 {[%emt 0:01:32]} 30. Kh1 {[%emt 0:02:44]} Qxf4 {[%emt 0:00:12][%mdl 4096] Endgame KQB-KQN} 31. Qa2 {[%emt 0:02:24]} Qc1+ {[%emt 0:07:06]} 32. Kh2 {[%emt 0:00:07]} Qc3 {[%emt 0:00:24] Black is more active.} ({Better is} 32... Qc7+ $17 33. Kh1 Kf7 34. Qf2+ Ke8) 33. Qa7 {[%emt 0:02:29]} Kf7 {[%emt 0:11:17]} (33... Qxb4 34. Qb8+ Kf7 35. Qf4+ Kg7 36. Qe5+ Kh6 37. Qf4+ g5 38. Qf8+ Kg6 39. d4 $11) 34. Qf2+ {[%emt 0:00:29]} (34. Qb8 $15) 34... Ke8 {[%emt 0:00:48]} 35. Qb6 {[%emt 0:01:09][%csl LRb5,LRe6]} Qe5+ {[%emt 0:02:01]} ({But not} 35... Qxb4 36. Qb8+ (36. Qxe6 dxe4 37. dxe4 Qc5 $17) 36... Kd7 37. Qb7+ Ke8 38. Qb8+ Kf7 39. Qf4+ Kg8 40. Qb8+ Kg7 41. Qe5+ Kf7 42. Qf4+ Kg8 43. Qb8+ Kg7 44. Qe5+ Kf7 45. Qf4+ $15) 36. Kh1 {[%emt 0:00:06]} Qa1+ {[%emt 0:00:09]} (36... dxe4 $17 37. dxe4 g5) 37. Kh2 $11 {[%emt 0:00:06]} Qe5+ {[%emt 0:00:09]} (37... Kf7 $11) 38. Kh1 $1 $15 {[%emt 0:00:04]} d4 {[%emt 0:00:51]} (38... dxe4 $15 39. dxe4 g5) 39. Bf3 $2 {[%emt 0:00:52]} (39. h4 $1 $11 {and White is okay.}) 39... h5 {[%emt 0:00:45]} 40. Kg2 {[%emt 0:00:14]} Kf7 {[%emt 0:01:26]} (40... Qg5+ $17 41. Kh2 Qf4+ 42. Kg2 Qg5+ 43. Kh1 Qc1+ 44. Kh2 Qf4+ 45. Kg2 Qd2+ 46. Kg1 Qxd3 47. Qb8+ Kd7 48. Qb7+ Ke8 49. Qb8+ Kf7 50. Qf4+ Kg7 51. Qe5+ Kf8 52. Qb8+ Kf7 53. Qf4+ Kg8) 41. Be2 $2 {[%emt 0:34:26][%mdl 8192]} ({White has to play} 41. h4 $1 $15) 41... Qg5+ $19 {[%emt 0:31:35]} 42. Kf1 {[%emt 0:00:00]} Qc1+ {[%emt 0:00:00]} 43. Kf2 {[%emt 0:00:00]} Qe3+ {[%emt 0:00:00]} 44. Ke1 {[%emt 0:00:00]} Qxh3 {[%emt 0:00:00]} 45. Qxd4 {[%emt 0:00:00]} Qg3+ {[%emt 0:00:00]} 46. Kd2 {[%emt 0:00:00]} h4 {[%emt 0:00:00][%cal Bh5h4,Bh4h3,Bh3h2][%mdl 32]} 47. Qh8 {[%emt 0:00:00]} (47. Qe3 {was the only defense.}) 47... h3 {[%emt 0:00:00]} 48. e5 {[%emt 0:00:00]} (48. Qh7+ $142 Kf8 49. Qh8+ Ng8 50. Qd4) 48... Qf4+ {[%emt 0:00:00]} 49. Kc2 {[%emt 0:00:23]} h2 {[%emt 0:00:00] White must now prevent ...Qf2.} 50. d4 {[%emt 0:00:44]} Qe4+ {[%emt 0:00:00]} ({And not} 50... Qxd4 51. Qh7+ Kf8 52. Qh8+ Kf7 53. Qh7+ Kf8 54. Qh8+ Ng8 55. Qxh2 $17) 51. Bd3 {[%emt 0:00:07]} Qc6+ {[%emt 0:00:00] Never resign too early!   Weighted Error Value: White=0.83/Black=0.14 (very precise)} (51... h1=R $2 52. Qf6+ Ke8 53. Bxe4 $18) 0-1